bitfinex-derivatives/quotes_SOLF0:USTF0_20250911
["timestamp","ask_amount","ask_price","bid_price","bid_amount"]
[1757632647917,6.49751971,228.63,228.62,7.54083706]
[1757632648818,3.04851024,228.63,228.62,7.54083706]
[1757632650008,0.02914976,228.65,228.62,0.01083706]
[1757632650214,3.06434955,228.64,228.62,0.01083706]
[1757632650415,0.02914976,228.65,228.62,0.01083706]
[1757632650616,3.06423415,228.64,228.62,0.01083706]
[1757632650815,0.02914976,228.65,228.62,0.01083706]
[1757632651015,3.06423415,228.64,228.62,0.01083706]
[1757632651313,0.02914976,228.65,228.62,0.01083706]
[1757632651518,3.06413787,228.64,228.62,0.01083706]
[1757632651716,0.02914976,228.65,228.62,0.01083706]
[1757632651917,3.06413787,228.64,228.62,0.01083706]
[1757632652118,0.02914976,228.65,228.62,0.01083706]
[1757632652416,6.52655497,228.64,228.62,0.01083706]
[1757632652617,0.02914976,228.65,228.62,0.01083706]
[1757632652916,3.06402982,228.64,228.62,0.01083706]
[1757632653117,0.02914976,228.65,228.62,0.01083706]
[1757632653312,6.5264125,228.64,228.62,0.01083706]
[1757632653620,0.02914976,228.65,228.62,0.01083706]
[1757632653920,6.52638231,228.64,228.62,0.01083706]
[1757632654222,3.24914976,228.65,228.62,0.01083706]
[1757632654420,6.5262586,228.64,228.62,0.01083706]
[1757632654620,3.24914976,228.65,228.62,0.01083706]
[1757632654821,6.5262586,228.64,228.62,0.01083706]
[1757632655017,3.06394188,228.63,228.62,0.01083706]
[1757632655521,8.22272307,228.63,228.62,0.01083706]
[1757632656522,6.52638466,228.63,228.62,0.01083706]
[1757632661724,9.94698266,228.63,228.62,0.01083706]
[1757632663117,122.20731522,228.63,228.46,7.32]
[1757632663324,3.22,228.54,228.46,7.32]
[1757632663931,3.06438403,228.53,228.46,7.32]
[1757632664120,3.22,228.54,228.46,7.32]
[1757632664322,0.0300886,228.52,228.46,7.32]
[1757632664821,4.94642701,228.52,228.46,7.32]
[1757632665025,3.06354618,228.51,228.4,1.69633841]
[1757632665228,3.22,228.5,228.41,7.32]
[1757632665526,1.69633841,228.49,228.41,7.32]
[1757632666227,0.03212024,228.47,228.41,7.32]
[1757632667318,0.03212024,228.47,228.35,15.08]
[1757632667319,3.22,228.46,228.36,1.69633841]
[1757632667526,3.22,228.46,228.37,7.32]
[1757632667832,0.03212024,228.47,228.4,7.32]
[1757632668024,0.03212024,228.47,228.41,1.69633841]
[1757632668231,0.03212024,228.47,228.42,7.32]
[1757632668920,0.03212024,228.47,228.44,1.69633841]
[1757632669622,0.03212024,228.47,228.45,7.32]
[1757632669820,0.03212024,228.47,228.44,1.69633841]
[1757632670024,0.03212024,228.47,228.36,7.32]
[1757632670225,0.03212024,228.47,228.4,7.32]
[1757632672831,0.03212024,228.47,228.42,7.32]
[1757632673326,0.03212024,228.47,228.41,1.69633841]
[1757632673629,0.03212024,228.47,228.42,7.32]
[1757632674030,0.03212024,228.47,228.41,1.69633841]
[1757632674427,0.03212024,228.47,228.42,7.32]
[1757632674627,0.03212024,228.47,228.41,1.69633841]
[1757632674831,0.03212024,228.47,228.42,7.32]
[1757632675220,0.03212024,228.47,228.41,1.69633841]
[1757632675425,0.03212024,228.47,228.42,7.32]
[1757632675921,0.03212024,228.47,228.45,7.32]
[1757632676124,0.03212024,228.47,228.46,7.32]
[1757632681936,3.24,228.56,228.46,7.32]
[1757632682734,1.69633841,228.57,228.46,7.32]
[1757632682935,3.24,228.55,228.46,7.32]
[1757632683338,3.24,228.55,228.48,0.02782344]
[1757632691351,3.24,228.55,228.39,2.65358992]
[1757632691352,3.24,228.49,228.39,6.87]
[1757632691553,3.24,228.48,228.39,6.87]
[1757632692048,106.96,228.49,228.39,6.87]
[1757632692250,3.24,228.48,228.39,6.87]
[1757632692441,0.02763958,228.46,228.39,6.87]
[1757632692643,3.24,228.45,228.39,6.87]
[1757632701460,0.02763958,228.46,228.39,6.87]
[1757632705662,3.07285033,228.45,228.39,6.87]
[1757632705961,0.02763958,228.46,228.39,6.87]
[1757632706158,3.07271639,228.45,228.39,6.87]
[1757632706363,3.07495792,228.44,228.32,6.87]
[1757632706559,0.02763958,228.46,228.32,6.87]
[1757632706766,6.5347227,228.45,228.32,6.87]
[1757632706959,4.90033256,228.52,228.32,6.87]
[1757632706960,0.02944716,228.41,228.32,6.87]
[1757632707162,3.24,228.52,228.35,2.65358992]
[1757632707464,9.90950593,228.51,228.36,6.87]
[1757632707661,9.90950593,228.5,228.36,6.87]
[1757632707858,6.53416,228.49,228.36,6.87]
[1757632708066,6.53416,228.48,228.36,6.87]
[1757632708362,3.07475441,228.47,228.4,0.02940427]
[1757632708664,3.07697081,228.46,228.41,7.4]
[1757632708858,3.24,228.52,228.41,7.4]
[1757632709059,9.90993066,228.51,228.41,7.4]
[1757632709260,9.90993066,228.5,228.41,7.4]
[1757632709567,9.90993066,228.49,228.41,7.4]
[1757632709766,6.53866782,228.48,228.41,7.4]
[1757632709963,6.53866782,228.47,228.41,7.4]
[1757632710158,3.26,228.45,228.41,7.4]
[1757632710366,6.540063,228.44,228.4,0.02940427]
[1757632710560,6.33749762,228.43,228.31,7.4]
[1757632710760,3.26,228.43,228.31,7.4]
[1757632711265,3.26,228.43,228.36,7.4]
[1757632712267,3.26,228.41,228.35,0.02829944]
[1757632712460,3.26,228.39,228.35,7.42829944]
[1757632712661,3.26,228.39,228.35,7.4]
[1757632712960,3.26,228.39,228.35,7.4284414]
[1757632713760,3.26,228.41,228.35,0.0284414]
[1757632713956,6.53464391,228.4,228.35,0.0284414]
[1757632714161,2.65358992,228.42,228.35,0.0284414]
[1757632714362,3.26,228.4,228.35,0.0284414]
[1757632714669,3.26,228.41,228.35,0.0284414]
[1757632714967,2.65358992,228.42,228.35,0.0284414]
[1757632714968,6.53260008,228.4,228.35,0.0284414]
[1757632715168,3.07441998,228.39,228.35,0.0284414]
[1757632715372,3.26,228.41,228.35,0.0284414]
[1757632715562,3.26,228.39,228.35,0.0284414]
[1757632715762,3.26,228.41,228.35,0.0284414]
[1757632715963,6.53032989,228.4,228.35,0.0284414]
[1757632716165,3.26,228.38,228.35,0.0284414]
[1757632717966,3.26,228.41,228.35,0.0284414]
[1757632718165,3.07131939,228.4,228.35,0.0284414]
[1757632718472,2.65358992,228.42,228.35,0.0284414]
[1757632718473,3.26,228.41,228.35,0.0284414]
[1757632718671,3.26,228.39,228.35,0.0284414]
[1757632718871,3.26,228.41,228.35,0.0284414]
[1757632719067,3.26,228.39,228.35,0.0284414]
[1757632719271,3.26,228.41,228.35,0.0284414]
[1757632719470,3.26,228.39,228.35,0.0284414]
[1757632719666,3.26,228.41,228.35,0.0284414]
[1757632719871,3.26,228.39,228.35,0.0284414]
[1757632720170,3.26,228.41,228.35,0.0284414]
[1757632720375,3.26,228.39,228.35,0.0284414]
[1757632720572,3.26,228.41,228.35,0.0284414]
[1757632720766,3.06930414,228.4,228.35,0.0284414]
[1757632721068,3.26,228.41,228.35,0.0284414]
[1757632721370,3.26,228.39,228.35,0.0284414]
[1757632721571,3.26,228.41,228.35,0.0284414]
[1757632721771,3.26,228.39,228.35,0.0284414]
[1757632721971,3.26,228.41,228.35,0.0284414]
[1757632722267,3.26,228.4,228.36,7.4]
[1757632722470,2.65358992,228.4,228.35,0.0284414]
[1757632722662,2.65358992,228.36,228.22,7.4]
[1757632722866,3.26,228.34,228.22,7.4]
[1757632723063,2.65358992,228.36,228.22,7.4]
[1757632723263,3.26,228.34,228.27,0.02833604]
[1757632723471,3.26,228.31,228.27,0.02833604]
[1757632723662,2.65358992,228.32,228.27,0.02833604]
[1757632723863,6.32842688,228.31,228.22,7.4]
[1757632724069,2.65358992,228.32,228.27,0.02982467]
[1757632724469,3.26,228.31,228.27,0.02982467]
[1757632725170,2.65358992,228.32,228.27,0.02982467]
[1757632725768,3.26,228.31,228.27,0.02982467]
[1757632726264,2.65358992,228.32,228.27,0.02982467]
[1757632726462,24.44,228.35,228.27,0.02982467]
[1757632726668,3.26,228.33,228.27,0.02982467]
[1757632726867,3.26,228.33,228.25,7.4]
[1757632727873,3.26,228.33,228.27,0.03085302]
[1757632728076,5.91358992,228.33,228.27,0.03085302]
[1757632729066,3.06127171,228.32,228.27,0.03085302]
[1757632729277,5.91358992,228.33,228.27,0.03085302]
[1757632729278,3.26,228.28,228.27,0.03085302]
[1757632729472,16.67367915,228.28,228.27,0.03085302]
[1757632729776,3.26,228.28,228.27,0.03085302]
[1757632734076,16.12985412,228.28,228.27,0.03085302]
[1757632735273,16.12985412,228.28,228.1,0.7625893]
[1757632735274,16.56985412,228.28,228.14,7.4]
[1757632735571,3.25,228.24,228.14,7.4]
[1757632736676,0.03052775,228.21,228.14,7.4]
[1757632737481,0.03052775,228.21,228.14,7.84]
[1757632737781,3.27,228.34,228.16,7.23]
[1757632737978,6.4885579,228.33,228.16,7.23]
[1757632738179,3.27,228.31,228.16,7.23]
[1757632739284,3.27,228.31,228.22,7.23]
[1757632749282,3.05607341,228.3,228.22,7.23]
[1757632749484,3.27,228.31,228.22,7.23]
[1757632749683,3.27,228.35,228.22,7.23]
[1757632749883,3.27,228.39,228.22,7.23]
[1757632750082,6.47948162,228.38,228.22,7.23]
[1757632750285,3.05608996,228.37,228.28,0.02837973]
[1757632750485,3.05608996,228.37,228.29,7.23]
[1757632751086,3.27,228.39,228.29,7.23]
[1757632751286,1.70065172,228.37,228.29,7.23]
[1757632751481,4.97065172,228.37,228.29,7.23]
[1757632752289,4.97065172,228.37,228.31,0.02897737]
[1757632754185,3.06273479,228.36,228.31,0.02897737]
[1757632754391,3.27,228.35,228.31,7.25897737]
[1757632755383,3.27,228.33,228.31,0.02897737]
[1757632755584,1.70065172,228.34,228.31,0.02897737]
[1757632755784,6.33475498,228.33,228.31,0.02897737]
[1757632755988,3.27,228.33,228.31,0.02897737]
[1757632756388,1.70065172,228.34,228.31,0.02897737]
[1757632756688,3.27,228.32,228.31,0.02897737]
[1757632757291,6.33638783,228.32,228.31,0.02897737]
[1757632761193,3.06638783,228.32,228.31,0.02897737]
[1757632761393,4.97065172,228.34,228.31,0.02897737]
[1757632761603,3.05742726,228.33,228.32,7.23]
[1757632761798,1.70065172,228.35,228.32,7.23]
[1757632761992,3.27,228.38,228.31,0.02897737]
[1757632762194,6.49464037,228.37,228.32,7.23]
[1757632762391,3.05689267,228.36,228.32,7.23]
[1757632762696,1.70065172,228.38,228.32,7.23]
[1757632762896,1.70065172,228.38,228.31,0.02897737]
[1757632762897,9.76570569,228.37,228.31,0.02897737]
[1757632763101,9.76570569,228.37,228.31,7.25897737]
[1757632763102,3.27,228.37,228.31,7.25897737]
[1757632765604,1.70065172,228.38,228.31,7.25897737]
[1757632765800,3.05882562,228.37,228.31,7.25897737]
[1757632766001,1.70065172,228.38,228.31,7.25897737]
[1757632766205,3.05882562,228.37,228.31,7.25897737]
[1757632766404,1.70065172,228.38,228.31,7.25897737]
[1757632767102,1.70065172,228.39,228.31,7.25897737]
[1757632767296,1.70065172,228.41,228.31,7.25897737]
[1757632767497,3.05922984,228.4,228.31,7.25897737]
[1757632767696,1.70065172,228.41,228.31,7.25897737]
[1757632767896,3.05922633,228.4,228.31,7.25897737]
[1757632768094,1.70065172,228.41,228.31,7.25897737]
[1757632768292,3.05843435,228.4,228.31,7.25897737]
[1757632768504,1.70065172,228.41,228.31,7.25897737]
[1757632768802,3.05830426,228.4,228.31,7.25897737]
[1757632769001,1.70065172,228.41,228.31,7.25897737]
[1757632769304,1.70065172,228.42,228.31,7.25897737]
[1757632769499,3.0573238,228.41,228.31,7.25897737]
[1757632769698,1.70065172,228.42,228.31,7.25897737]
[1757632770406,1.70065172,228.39,228.31,7.25897737]
[1757632775709,1.70065172,228.41,228.31,7.25897737]
[1757632776012,1.70065172,228.42,228.31,7.25897737]
[1757632776620,3.27,228.47,228.31,7.25897737]
[1757632776621,1.70065172,228.45,228.31,7.25897737]
[1757632777023,1.70065172,228.45,228.31,7.23]
[1757632777325,1.70065172,228.45,228.37,7.29]
[1757632777720,3.27,228.47,228.37,7.29]
[1757632778020,1.70065172,228.44,228.37,7.29]
[1757632780923,3.27,228.52,228.37,7.29]
[1757632781222,1.70065172,228.52,228.4,7.29]
[1757632781624,1.70065172,228.53,228.43,7.29]
[1757632782727,1.70065172,228.53,228.46,7.31856146]
[1757632783824,1.70065172,228.56,228.46,7.31856146]
[1757632784125,17.07,228.59,228.46,7.31856146]
[1757632784126,1.70065172,228.57,228.46,7.31856146]
[1757632784326,17.07,228.59,228.46,7.31856146]
[1757632784528,1.70065172,228.57,228.46,7.31856146]
[1757632787924,3.27,228.59,228.46,7.31856146]
[1757632788124,1.70065172,228.57,228.46,7.31856146]
[1757632791229,39.4217933,228.65,228.46,7.31856146]
[1757632791230,1.70065172,228.54,228.46,7.31856146]
[1757632791624,1.70065172,228.54,228.46,7.29]
[1757632791823,1.70065172,228.54,228.48,0.02769836]
[1757632792929,4.98065172,228.54,228.48,0.02769836]
[1757632793632,4.98065172,228.51,228.48,0.02769836]
[1757632793832,3.28,228.5,228.48,0.02769836]
[1757632794130,1.70065172,228.51,228.41,7.29]
[1757632794327,1.70065172,228.52,228.47,0.02791049]
[1757632794632,1.70065172,228.52,228.48,7.29]
[1757632795032,1.70065172,228.52,228.47,0.02791049]
[1757632795233,1.70065172,228.52,228.48,7.29]
[1757632795631,1.70065172,228.52,228.47,0.02791049]
[1757632795832,1.70065172,228.52,228.48,7.29]
[1757632796129,1.70065172,228.53,228.48,7.29]
[1757632796433,1.70065172,228.53,228.47,7.31791049]
[1757632801236,3.28,228.55,228.47,7.31791049]
[1757632801826,1.70065172,228.59,228.47,7.31791049]
[1757632802126,1.70065172,228.59,228.47,7.29]
[1757632802436,1.70065172,228.59,228.52,7.1]
[1757632802828,3.27,228.58,228.52,7.1]
[1757632803028,1.70065172,228.56,228.51,0.02873835]
[1757632803335,3.27,228.55,228.52,7.1]
[1757632803836,3.27,228.55,228.51,0.02773711]
[1757632804036,3.27,228.55,228.51,7.12773711]
[1757632805031,1.70065172,228.56,228.51,0.02773711]
[1757632805229,3.27,228.52,228.51,0.02773711]
[1757632805736,1.70065172,228.53,228.43,7.1]
[1757632805936,4.97065172,228.56,228.49,0.0290719]
[1757632806237,4.97065172,228.56,228.49,7.1290719]
[1757632806434,1.70065172,228.56,228.49,7.1290719]
[1757632806739,1.70065172,228.59,228.49,7.1290719]
[1757632807138,3.27,228.65,228.52,7.1]
[1757632807339,1.70065172,228.61,228.52,7.12929897]
[1757632807538,3.27,228.6,228.52,7.12929897]
[1757632807739,3.27,228.6,228.52,7.1]
[1757632808137,3.27,228.6,228.54,0.02793771]
[1757632810240,4.97065172,228.6,228.54,0.02793771]
[1757632811736,3.27,228.6,228.54,0.02793771]
[1757632811937,3.27,228.58,228.54,0.02793771]
[1757632812338,3.27,228.58,228.51,7.1]
[1757632812840,3.27,228.58,228.52,0.02807206]
[1757632821147,3.04920192,228.57,228.52,0.02807206]
[1757632821348,3.27,228.58,228.52,0.02807206]
[1757632821547,3.24,228.56,228.52,0.02807206]
[1757632821748,3.24,228.58,228.52,0.02807206]
[1757632821949,3.04937331,228.57,228.52,0.02807206]
[1757632822150,3.24,228.58,228.52,0.02807206]
[1757632822348,3.05096322,228.57,228.52,0.02807206]
[1757632822547,3.24,228.58,228.52,0.02807206]
[1757632822747,3.05116018,228.57,228.52,0.02807206]
[1757632822950,3.24,228.58,228.52,0.02807206]
[1757632823145,6.49454412,228.57,228.52,0.02807206]
[1757632823345,3.24,228.58,228.52,0.02807206]
[1757632823545,3.24,228.56,228.52,0.02807206]
[1757632823746,3.24,228.58,228.52,0.02807206]
[1757632823945,3.24,228.56,228.52,0.02807206]
[1757632824248,2.65214868,228.59,228.52,0.02807206]
[1757632824249,3.24,228.58,228.52,0.02807206]
[1757632824449,6.50221765,228.57,228.52,0.02807206]
[1757632824646,3.05570252,228.56,228.53,7.1]
[1757632824850,3.24,228.59,228.53,7.1]
[1757632825044,3.24,228.57,228.53,7.1]
[1757632825239,3.24,228.62,228.53,7.1]
[1757632825443,9.79104917,228.61,228.53,7.1]
[1757632825651,3.24,228.59,228.53,7.1]
[1757632825846,9.74903527,228.58,228.53,7.1]
[1757632826047,3.05897182,228.57,228.53,7.1]
[1757632826246,3.24,228.62,228.53,7.1]
[1757632826447,6.50961578,228.61,228.53,7.1]
[1757632826645,6.50961578,228.6,228.53,7.1]
[1757632826851,6.50961578,228.59,228.53,7.1]
[1757632827050,3.05923709,228.58,228.52,0.02807206]
[1757632827249,3.24,228.62,228.53,7.1]
[1757632827456,6.50999829,228.61,228.53,7.1]
[1757632827653,6.50999829,228.6,228.53,7.1]
[1757632827953,3.05941061,228.59,228.53,7.1]
[1757632828149,3.24,228.62,228.53,7.1]
[1757632828358,6.51038304,228.61,228.53,7.1]
[1757632828555,3.24,228.62,228.53,7.1]
[1757632828745,6.50954188,228.61,228.53,7.1]
[1757632828945,3.24,228.62,228.53,7.1]
[1757632829152,3.05919065,228.61,228.53,7.1]
[1757632829454,3.24,228.62,228.53,7.1]
[1757632829655,3.05892552,228.61,228.53,7.1]
[1757632829955,3.24,228.62,228.53,7.1]
[1757632830151,6.50200653,228.61,228.53,7.1]
[1757632830354,3.05887106,228.6,228.53,7.1]
[1757632830655,3.24,228.62,228.53,7.1]
[1757632830854,6.50183088,228.61,228.53,7.1]
[1757632831153,3.05878538,228.6,228.53,7.1]
[1757632831347,3.24,228.62,228.53,7.1]
[1757632831547,6.50145242,228.61,228.53,7.1]
[1757632831748,3.05860568,228.6,228.53,7.1]
[1757632831954,3.24,228.62,228.53,7.1]
[1757632832249,3.05860568,228.61,228.53,7.1]
[1757632832460,3.24,228.62,228.53,7.1]
[1757632832651,3.05835281,228.61,228.53,7.1]
[1757632832952,3.24,228.62,228.53,7.1]
[1757632833151,3.0583526,228.61,228.53,7.1]
[1757632833445,3.24,228.62,228.53,7.1]
[1757632833648,3.05809111,228.61,228.53,7.1]
[1757632833850,3.24,228.62,228.53,7.1]
[1757632834055,3.05809111,228.61,228.53,7.1]
[1757632834254,3.24,228.62,228.53,7.1]
[1757632834454,3.05784665,228.61,228.53,7.1]
[1757632834653,3.24,228.62,228.53,7.1]
[1757632834854,3.05787573,228.61,228.53,7.1]
[1757632835056,3.24,228.62,228.53,7.1]
[1757632835258,3.05787573,228.61,228.53,7.1]
[1757632835450,3.24,228.62,228.53,7.1]
[1757632835754,3.05770765,228.61,228.53,7.1]
[1757632835959,3.24,228.62,228.53,7.1]
[1757632836155,3.05770765,228.61,228.53,7.1]
[1757632836354,3.24,228.62,228.53,7.1]
[1757632836554,3.05759568,228.61,228.53,7.1]
[1757632836856,3.24,228.62,228.53,7.1]
[1757632837155,3.05759568,228.61,228.53,7.1]
[1757632837453,3.24,228.62,228.53,7.1]
[1757632837661,6.31767038,228.61,228.52,0.02807206]
[1757632837860,3.26,228.61,228.52,0.02807206]
[1757632838059,3.26,228.61,228.5,7.1]
[1757632838252,3.26,228.61,228.54,0.02829045]
[1757632840163,3.0582751,228.6,228.54,0.02829045]
[1757632840458,3.26,228.61,228.54,0.02829045]
[1757632840658,3.05828346,228.6,228.54,0.02829045]
[1757632840859,3.26,228.61,228.54,0.02829045]
[1757632841159,3.05828363,228.6,228.54,0.02829045]
[1757632841355,3.26,228.61,228.54,0.02829045]
[1757632841561,31.30074763,228.69,228.54,0.02829045]
[1757632841562,2.65214868,228.58,228.54,0.02829045]
[1757632841757,3.26,228.56,228.54,0.02829045]
[1757632841956,6.31860519,228.55,228.46,7.1]
[1757632842153,3.26,228.55,228.53,0.02848742]
[1757632842460,3.26,228.57,228.5,7.1]
[1757632842860,3.26,228.61,228.5,7.1]
[1757632843062,3.05897036,228.6,228.52,7.1]
[1757632843261,3.26,228.61,228.52,7.1]
[1757632843459,6.5028857,228.6,228.52,7.1]
[1757632843659,3.05928295,228.59,228.52,7.1]
[1757632843859,3.26,228.61,228.52,7.1]
[1757632844060,6.5028857,228.6,228.52,7.1]
[1757632844359,3.05928295,228.59,228.52,7.1]
[1757632844560,3.26,228.61,228.52,7.1]
[1757632844860,6.50365115,228.6,228.52,7.1]
[1757632845159,3.05964087,228.59,228.52,7.1]
[1757632845359,3.26,228.61,228.52,7.1]
[1757632845549,6.50379857,228.6,228.52,7.1]
[1757632845750,3.05971079,228.59,228.52,7.1]
[1757632845962,3.26,228.61,228.52,7.1]
[1757632846162,6.50379822,228.6,228.52,7.1]
[1757632846362,3.05971063,228.59,228.52,7.1]
[1757632846562,3.26,228.61,228.52,7.1]
[1757632846759,3.05998719,228.6,228.52,7.1]
[1757632846960,3.26,228.61,228.52,7.1]
[1757632847271,3.05998719,228.6,228.52,7.1]
[1757632847561,3.26,228.61,228.52,7.1]
[1757632847764,3.05994245,228.6,228.52,7.1]
[1757632847956,3.26,228.61,228.52,7.1]
[1757632848256,3.05998424,228.6,228.52,7.1]
[1757632848453,3.26,228.61,228.52,7.1]
[1757632848656,3.06723999,228.6,228.52,7.1]
[1757632848860,3.06723999,228.59,228.52,7.1]
[1757632849056,3.26,228.61,228.52,7.1]
[1757632849261,3.06715622,228.6,228.52,7.1]
[1757632849458,3.26,228.61,228.52,7.1]
[1757632849660,3.06737072,228.6,228.52,7.1]
[1757632849863,3.26,228.61,228.52,7.1]
[1757632850066,3.06737073,228.6,228.52,7.1]
[1757632850363,3.26,228.61,228.52,7.1]
[1757632850663,7.55248124,228.68,228.52,7.1]
[1757632850664,3.26,228.65,228.52,7.1]
[1757632850864,9.91049516,228.64,228.52,7.1]
[1757632851063,6.51332414,228.63,228.52,7.1]
[1757632851258,3.0679629,228.62,228.52,7.1]
[1757632851565,3.26,228.65,228.55,0.03106411]
[1757632851763,9.91115777,228.64,228.56,7.1]
[1757632851963,6.51375887,228.63,228.56,7.1]
[1757632852164,3.06817008,228.62,228.56,7.1]
[1757632852366,3.26,228.65,228.56,7.1]
[1757632852560,3.26,228.63,228.56,7.1]
[1757632852760,3.06786633,228.62,228.56,7.1]
[1757632852960,3.06786633,228.61,228.52,7.1]
[1757632853162,3.26,228.63,228.52,7.1]
[1757632853365,3.06786633,228.62,228.52,7.1]
[1757632853566,3.26,228.63,228.52,7.1]
[1757632853866,3.06763892,228.62,228.56,7.1]
[1757632854168,3.26,228.63,228.56,7.1]
[1757632854368,6.51264757,228.62,228.56,7.1]
[1757632854567,3.06769726,228.61,228.56,7.1]
[1757632854765,3.26,228.6,228.56,7.1]
[1757632855263,3.26,228.6,228.5,44.42]
[1757632855264,2.65214868,228.68,228.51,7.1]
[1757632855463,3.26,228.66,228.56,0.03125488]
[1757632855664,9.9091456,228.65,228.57,7.1]
[1757632855861,9.9091456,228.64,228.57,7.1]
[1757632856063,6.51247294,228.63,228.57,7.1]
[1757632856262,3.26,228.61,228.57,7.1]
[1757632856765,3.26,228.67,228.57,7.1]
[1757632856963,9.90868529,228.66,228.57,7.1]
[1757632857164,3.26,228.64,228.56,0.03125488]
[1757632857369,3.26,228.62,228.56,0.03125488]
[1757632857565,3.24,228.6,228.56,7.01125488]
[1757632857767,3.24,228.6,228.57,6.98]
[1757632859070,3.24,228.67,228.56,0.03125488]
[1757632859370,3.24,228.63,228.56,0.03125488]
[1757632859570,6.51691193,228.62,228.56,0.03125488]
[1757632859771,6.51691193,228.61,228.56,0.03125488]
[1757632860069,3.24,228.59,228.56,0.03125488]
[1757632860467,3.24,228.63,228.56,0.03125488]
[1757632860668,3.24,228.61,228.56,0.03125488]
[1757632860870,3.24,228.59,228.56,0.03125488]
[1757632862268,3.24,228.59,228.56,7.01125488]
[1757632862468,3.24,228.63,228.56,0.03125488]
[1757632862671,3.24,228.61,228.56,0.03125488]
[1757632862859,6.51746748,228.6,228.56,0.03125488]
[1757632863064,3.0676407,228.59,228.56,0.03125488]
[1757632863266,3.24,228.57,228.56,0.03125488]
[1757632864571,3.24,228.63,228.56,0.03125488]
[1757632864765,9.93563218,228.62,228.56,0.03125488]
[1757632864965,3.24,228.6,228.56,7.01125488]
[1757632865871,3.24,228.6,228.57,6.98]
[1757632866468,3.24,228.64,228.56,7.01125488]
[1757632866674,6.51857497,228.63,228.56,7.01125488]
[1757632866873,6.51857497,228.62,228.56,7.01125488]
[1757632867068,6.30816298,228.61,228.57,6.98]
[1757632867274,3.06816298,228.6,228.57,6.98]
[1757632867474,3.24,228.61,228.57,6.98]
[1757632867776,3.06862907,228.6,228.57,6.98]
[1757632867973,3.24,228.61,228.57,6.98]
[1757632868175,3.06862907,228.6,228.57,6.98]
[1757632868376,3.24,228.61,228.57,6.98]
[1757632868575,6.30921947,228.6,228.57,6.98]
[1757632868773,3.24,228.6,228.57,6.98]
[1757632869878,3.06992609,228.59,228.57,6.98]
[1757632870070,3.24,228.6,228.57,6.98]
[1757632870370,3.06992609,228.59,228.57,6.98]
[1757632870577,7.55248124,228.68,228.57,6.98]
[1757632870775,3.24,228.66,228.57,6.98]
[1757632870975,3.24,228.64,228.57,6.98]
[1757632871276,3.24,228.62,228.56,0.03125488]
[1757632871480,3.24,228.6,228.56,0.03125488]
[1757632871679,3.24,228.58,228.56,0.03125488]
[1757632871877,2.65214868,228.64,228.56,0.03125488]
[1757632871878,3.24,228.63,228.56,0.03125488]
[1757632872081,9.94471652,228.62,228.56,0.03125488]
[1757632872371,4.90033256,228.66,228.56,7.01125488]
[1757632872372,4.93722259,228.6,228.56,7.01125488]
[1757632872576,6.52375242,228.59,228.57,6.98]
[1757632872770,3.07061134,228.58,228.57,6.98]
[1757632872967,3.24,228.67,228.57,6.98]
[1757632873168,9.94268364,228.66,228.57,6.98]
[1757632873371,9.94268364,228.65,228.6,0.02940491]
[1757632873674,6.5223987,228.64,228.6,7.00940491]
[1757632873983,3.06997871,228.63,228.61,6.98]
[1757632874174,3.24,228.65,228.61,6.98]
[1757632874374,6.52016741,228.64,228.61,6.98]
[1757632874575,3.06891936,228.63,228.61,6.98]
[1757632874878,3.24,228.65,228.61,6.98]
[1757632875078,6.52012795,228.64,228.61,6.98]
[1757632875280,3.06890076,228.63,228.61,6.98]